bitfinex/quotes_BTCUSD_20251117
["timestamp","ask_amount","ask_price","bid_price","bid_amount"]
[1763343440127,0.74179,95330.0,95329.0,0.04944442]
[1763343441273,0.76572,95330.0,95329.0,0.04956556]
[1763343441975,0.76572,95330.0,95329.0,0.00012114]
[1763343442146,0.76572,95330.0,95329.0,0.04956556]
[1763343443903,0.76572,95330.0,95329.0,0.05056556]
[1763343444080,0.74179,95330.0,95329.0,0.05056556]
[1763343444328,0.74179,95330.0,95329.0,0.04956556]
[1763343445095,0.76572,95330.0,95329.0,0.04956556]
[1763343445546,0.93396,95330.0,95329.0,0.04956556]
[1763343446322,0.82591,95330.0,95329.0,0.04956556]
[1763343446512,0.72545,95330.0,95329.0,0.04956556]
[1763343447648,0.713,95330.0,95329.0,0.04956556]
[1763343447861,0.39,95330.0,95329.0,0.04956556]
[1763343449969,0.39,95330.0,95329.0,0.05056556]
[1763343450201,0.713,95330.0,95329.0,0.05056556]
[1763343450566,0.72934,95330.0,95329.0,0.05056556]
[1763343450916,0.75327,95330.0,95329.0,0.00112114]
[1763343451042,0.75327,95330.0,95329.0,0.05056556]
[1763343451367,0.75327,95330.0,95329.0,0.04956556]
[1763343453174,0.75327,95330.0,95329.0,0.00012114]
[1763343453373,0.828597,95330.0,95329.0,0.00012114]
[1763343453849,0.323,95329.0,95316.0,0.04944442]
[1763343454039,0.323,95325.0,95316.0,0.04957767]
[1763343454242,0.02879,95317.0,95316.0,0.04957767]
[1763343454420,0.71179,95317.0,95316.0,0.04957767]
[1763343454623,0.73572,95317.0,95316.0,0.04957767]
[1763343455447,0.90396,95317.0,95316.0,0.04957767]
[1763343457135,0.73572,95317.0,95316.0,0.00013325]
[1763343457334,0.71179,95317.0,95316.0,0.04957767]
[1763343457501,0.73572,95317.0,95316.0,0.04957767]
[1763343464118,0.73572,95317.0,95316.0,0.00013325]
[1763343465593,0.90404,95317.0,95316.0,0.00013325]
[1763343470967,0.73572,95317.0,95316.0,0.04957767]
[1763343475372,0.90404,95317.0,95316.0,0.04957767]
[1763343476125,0.73572,95317.0,95316.0,0.04957767]
[1763343480339,0.36,95317.0,95316.0,0.04957767]
[1763343480585,0.39884,95317.0,95316.0,0.04957767]
[1763343480947,0.72184,95317.0,95316.0,0.04957767]
[1763343481564,0.72184,95317.0,95316.0,0.05057767]
[1763343481994,0.72184,95317.0,95316.0,0.04957767]
[1763343482660,0.794024,95317.0,95316.0,0.04957767]
[1763343482872,0.794024,95317.0,95316.0,0.00013325]
[1763343483106,0.72184,95317.0,95316.0,0.00013325]
[1763343483324,0.72184,95317.0,95260.0,0.19779736]
[1763343483325,0.323,95307.0,95301.0,0.04944442]
[1763343483542,0.01625,95299.0,95290.0,0.0754037]
[1763343483753,0.323,95298.0,95294.0,0.04944442]
[1763343483967,0.01168,95293.0,95291.0,0.04944442]
[1763343484182,0.323,95292.0,95291.0,0.04944442]
[1763343484428,0.70352,95292.0,95291.0,0.04944442]
[1763343484822,0.70352,95292.0,95290.0,0.00013295]
[1763343485120,0.66468,95292.0,95291.0,0.04944442]
[1763343485484,0.87184,95292.0,95291.0,0.05044442]
[1763343486251,0.78768,95292.0,95291.0,0.05044442]
[1763343486387,0.70352,95292.0,95291.0,0.05044442]
[1763343486590,0.70352,95292.0,95291.0,0.04944442]
[1763343487957,0.70352,95292.0,95290.0,0.04957737]
[1763343488132,0.03884,95291.0,95290.0,0.04957737]
[1763343488364,0.70184,95291.0,95290.0,0.04957737]
[1763343490635,0.70184,95291.0,95290.0,0.00013295]
[1763343490849,0.72392352,95291.0,95290.0,0.00013295]
[1763343493627,0.70184,95291.0,95290.0,0.00013295]
[1763343495677,0.87016,95291.0,95290.0,0.00013295]
[1763343496100,0.786,95291.0,95290.0,0.00013295]
[1763343496470,0.786,95291.0,95290.0,0.04957737]
[1763343496889,0.67925,95291.0,95290.0,0.04957737]
[1763343497719,0.70283,95291.0,95290.0,0.04957737]
[1763343498268,0.67925,95291.0,95290.0,0.04957737]
[1763343498669,0.70283,95291.0,95290.0,0.04957737]
[1763343499113,0.775449,95291.0,95290.0,0.04957737]
[1763343499666,0.70283,95291.0,95290.0,0.04957737]
[1763343499799,0.67925,95291.0,95290.0,0.00013295]
[1763343500018,0.70283,95291.0,95290.0,0.04957737]
[1763343500225,0.67925,95291.0,95290.0,0.04957737]
[1763343501059,0.70283,95291.0,95290.0,0.04957737]
[1763343501663,0.67925,95291.0,95290.0,0.04957737]
[1763343502868,0.663,95291.0,95290.0,0.04957737]
[1763343503068,0.67901,95291.0,95290.0,0.04957737]
[1763343505442,0.84733,95291.0,95290.0,0.04957737]
[1763343505643,0.74716,95291.0,95290.0,0.04957737]
[1763343505902,0.67901,95291.0,95290.0,0.04957737]
[1763343506115,0.70259,95291.0,95290.0,0.04957737]
[1763343506480,0.67901,95291.0,95290.0,0.04957737]
[1763343506885,0.70259,95291.0,95290.0,0.04957737]
[1763343509992,0.663,95291.0,95290.0,0.04957737]
[1763343511154,0.663,95291.0,95290.0,0.05057737]
[1763343512716,0.34,95291.0,95290.0,0.22598107]
[1763343512927,0.663,95291.0,95290.0,0.22598107]
[1763343513467,0.64589585,95291.0,95290.0,0.22626331]
[1763343513871,0.64589585,95291.0,95290.0,0.15057737]
[1763343514265,0.64589585,95291.0,95290.0,0.14957737]
[1763343514629,0.64589585,95291.0,95290.0,0.15057737]
[1763343515071,0.64589585,95291.0,95290.0,0.14957737]
[1763343515277,0.64589585,95291.0,95290.0,0.22526509]
[1763343515472,0.81421585,95291.0,95290.0,0.22626509]
[1763343515632,0.81421585,95291.0,95290.0,0.15057737]
[1763343518176,0.81421585,95291.0,95290.0,0.14957737]
[1763343518617,0.81421585,95291.0,95290.0,0.15057737]
[1763343518788,0.64589585,95291.0,95290.0,0.15057737]
[1763343519744,0.64589585,95291.0,95290.0,0.22623043]
[1763343524728,0.64589585,95291.0,95290.0,0.15057737]
[1763343525429,0.81421585,95291.0,95290.0,0.15057737]
[1763343526306,0.84197585,95291.0,95290.0,0.15057737]
[1763343526507,0.69815585,95291.0,95290.0,0.15057737]
[1763343526744,0.69815585,95291.0,95290.0,0.05057737]
[1763343527363,0.69815585,95291.0,95290.0,0.04957737]
[1763343528846,0.69815585,95291.0,95290.0,0.00013295]
[1763343531569,0.69815585,95291.0,95290.0,0.04957737]
[1763343535431,0.86647585,95291.0,95290.0,0.04957737]
[1763343537653,0.69815585,95291.0,95290.0,0.04957737]
[1763343538053,0.67365585,95291.0,95290.0,0.04957737]
[1763343538261,0.65758585,95291.0,95290.0,0.04957737]
[1763343539387,0.32289585,95291.0,95290.0,0.04957737]
[1763343539789,0.33896585,95291.0,95290.0,0.04957737]
[1763343540169,0.66196585,95291.0,95290.0,0.04957737]
[1763343540350,0.68646585,95291.0,95290.0,0.04957737]
[1763343540775,0.68646585,95291.0,95290.0,0.05057737]
[1763343541182,0.68646585,95291.0,95290.0,0.00113295]
[1763343541379,0.68646585,95291.0,95290.0,0.00013295]
[1763343542580,0.323,95290.0,95272.0,0.07565737]
[1763343542750,0.01169,95270.0,95267.0,0.07565737]
[1763343542910,0.323,95269.0,95265.0,0.07565737]
[1763343543109,0.01607,95266.0,95265.0,0.07565737]
[1763343543315,0.323,95265.0,95264.0,0.07565737]
[1763343543526,0.653,95265.0,95264.0,0.12510179]
[1763343543723,0.69357,95265.0,95264.0,0.12510179]
[1763343543946,0.653,95265.0,95264.0,0.12510179]
[1763343544182,0.653,95265.0,95264.0,0.04944442]
[1763343544533,0.653,95265.0,95264.0,0.09286316]
[1763343544735,0.33,95265.0,95264.0,0.09286316]
[1763343544958,0.18788557,95265.0,95264.0,0.18711779]
[1763343545269,0.33469,95289.0,95288.0,0.04944442]
[1763343545415,0.84301,95289.0,95288.0,0.04944442]
[1763343545619,0.85908,95289.0,95288.0,0.04944442]
[1763343545855,0.88358,95289.0,95288.0,0.04944442]
[1763343546435,0.89457785,95289.0,95288.0,0.14944442]
[1763343547100,0.89457785,95289.0,95288.0,0.05044442]
[1763343547600,0.72625785,95289.0,95288.0,0.05044442]
[1763343549322,0.72625785,95289.0,95288.0,0.04944442]
[1763343550127,0.80006595,95289.0,95285.0,0.04944442]
[1763343550303,0.0245,95288.0,95282.0,0.04944442]
[1763343550504,0.323,95287.0,95282.0,0.04944442]
[1763343550710,0.01607,95283.0,95282.0,0.04944442]
[1763343550905,0.74907,95283.0,95282.0,0.04944442]
[1763343551111,0.77357,95283.0,95282.0,0.04944442]
[1763343553465,0.77357,95283.0,95282.0,0.05044442]
[1763343553694,0.8532091,95283.0,95282.0,0.001]
[1763343554502,0.323,95282.0,95271.0,0.04944442]
[1763343554625,0.323,95280.0,95271.0,0.04944442]
[1763343554825,0.02776,95272.0,95271.0,0.04944442]
[1763343555026,0.69076,95272.0,95271.0,0.04944442]
[1763343555232,0.71526,95272.0,95271.0,0.04944442]
[1763343555493,0.955186,95272.0,95271.0,0.04944442]
[1763343555639,0.870986,95272.0,95271.0,0.04944442]
[1763343555978,0.79946,95272.0,95271.0,0.04944442]
[1763343556498,0.323,95271.0,95270.0,0.04944442]
[1763343556706,0.733,95271.0,95270.0,0.04944442]
[1763343557003,0.77262,95271.0,95270.0,0.04944442]
[1763343557216,0.851051,95271.0,95270.0,0.04944442]
[1763343558610,0.77262,95271.0,95270.0,0.04944442]
[1763343559872,0.74806,95271.0,95270.0,0.04944442]
[1763343560092,0.41,95271.0,95270.0,0.04944442]
[1763343562291,0.41,95271.0,95270.0,0.05044442]
[1763343564420,0.74806,95271.0,95270.0,0.05044442]
[1763343565469,0.91646,95271.0,95270.0,0.05044442]
[1763343565873,1.036337,95271.0,95270.0,0.05044442]
[1763343566686,0.94102,95271.0,95270.0,0.001]
[1763343566905,0.77262,95271.0,95270.0,0.05044442]
[1763343569191,0.77262,95271.0,95270.0,0.04944442]
[1763343571067,0.323,95270.0,95260.0,0.370175]
[1763343571277,0.323,95268.0,95267.0,0.04944442]
[1763343571452,0.663,95268.0,95267.0,0.04944442]
[1763343571666,0.70262,95268.0,95267.0,0.04944442]
[1763343573344,0.70262,95268.0,95260.0,0.370175]
[1763343573514,0.01506,95261.0,95260.0,0.370175]
[1763343573739,0.745866,95261.0,95260.0,0.370175]
[1763343573924,0.770426,95261.0,95260.0,0.370175]
[1763343575442,0.938826,95261.0,95260.0,0.370175]
[1763343576626,0.854626,95261.0,95260.0,0.370175]
[1763343576831,0.770426,95261.0,95260.0,0.370175]
[1763343585389,0.938826,95261.0,95260.0,0.370175]
[1763343587248,0.854626,95261.0,95260.0,0.370175]
[1763343587445,0.70262,95261.0,95260.0,0.370175]
[1763343595380,0.87102,95261.0,95260.0,0.370175]
[1763343597968,0.70262,95261.0,95260.0,0.370175]
[1763343600203,0.70262,95261.0,95260.0,0.34841318]
[1763343600413,0.774097,95261.0,95260.0,0.34841318]
[1763343601296,0.70262,95261.0,95260.0,0.34841318]
[1763343601517,0.70262,95261.0,95260.0,0.3978576]
[1763343601711,0.67806,95261.0,95260.0,0.3978576]
[1763343602299,0.34,95261.0,95260.0,0.3978576]
[1763343603830,0.34,95261.0,95260.0,0.4978576]
[1763343604459,0.34,95261.0,95260.0,0.4988576]
[1763343605193,0.34,95261.0,95260.0,0.4998576]
[1763343605412,0.8314,95261.0,95260.0,0.4998576]
[1763343606897,0.7472,95261.0,95260.0,0.4998576]
[1763343607108,0.34,95261.0,95260.0,0.54327634]
[1763343613754,0.35648586,95261.0,95260.0,0.54327634]
[1763343615463,0.76368586,95261.0,95260.0,0.54327634]
[1763343615644,0.84788586,95261.0,95260.0,0.54327634]
[1763343615801,0.76368586,95261.0,95260.0,0.54327634]
[1763343616688,0.77209445,95261.0,95260.0,0.4998576]
[1763343616897,0.72042586,95261.0,95260.0,0.3998576]
[1763343617134,0.67948586,95261.0,95260.0,0.3998576]
[1763343617538,0.72042586,95261.0,95260.0,0.3978576]
[1763343617997,0.72042586,95261.0,95260.0,0.3988576]
[1763343618580,0.72042586,95261.0,95260.0,0.34941318]
[1763343618793,0.79246845,95261.0,95260.0,0.34841318]
[1763343624393,0.77598259,95261.0,95260.0,0.34841318]
[1763343625320,0.77598259,95261.0,95260.0,0.34584418]
[1763343625496,0.94438259,95261.0,95260.0,0.34584418]
[1763343625725,0.87234,95261.0,95260.0,0.3952886]
[1763343627277,0.78814,95261.0,95260.0,0.3952886]
[1763343627480,0.72042835,95261.0,95260.0,0.34584418]
[1763343635411,0.72042835,95261.0,95260.0,0.3952886]
[1763343635412,0.88882835,95261.0,95260.0,0.3952886]
[1763343636440,0.37272835,95261.0,95260.0,0.3952886]
[1763343636805,0.69572835,95261.0,95260.0,0.3952886]
[1763343637013,0.37272835,95261.0,95260.0,0.3952886]
[1763343638308,0.35624,95261.0,95260.0,0.3952886]
[1763343639692,0.38094,95261.0,95260.0,0.3952886]
[1763343640103,0.35624,95261.0,95260.0,0.3952886]
[1763343640660,0.663,95261.0,95260.0,0.3952886]
[1763343641084,0.67924,95261.0,95260.0,0.3952886]
[1763343642520,0.70394,95261.0,95260.0,0.3952886]
[1763343643026,0.67924,95261.0,95260.0,0.3952886]
[1763343643277,0.663,95261.0,95260.0,0.3952886]
[1763343644090,0.34,95261.0,95260.0,0.43870734]
[1763343644405,0.34,95261.0,95260.0,0.53870734]
[1763343644623,0.34,95261.0,95260.0,0.53970734]
[1763343645506,0.8314,95261.0,95260.0,0.53970734]
[1763343646010,0.8314,95261.0,95260.0,0.54070734]
[1763343647197,0.8314,95261.0,95260.0,0.4972886]
[1763343651462,0.663,95261.0,95260.0,0.4972886]
[1763343652494,0.66101927,95261.0,95260.0,0.4972886]
[1763343652738,0.7431712,95261.0,95260.0,0.4972886]
[1763343652897,0.70060927,95261.0,95260.0,0.4972886]
[1763343653774,0.70060927,95261.0,95260.0,0.4962886]
[1763343654604,0.70060927,95261.0,95260.0,0.4952886]
[1763343655141,0.70060927,95261.0,95260.0,0.4962886]
[1763343655427,0.95555825,95261.0,95260.0,0.4962886]
[1763343659574,0.93201825,95261.0,95260.0,0.4962886]
[1763343660372,0.86195732,95261.0,95260.0,0.4962886]
[1763343660752,0.67750732,95261.0,95260.0,0.4962886]
[1763343660959,0.52290732,95261.0,95260.0,0.4962886]
[1763343661341,0.84590732,95261.0,95260.0,0.4962886]
[1763343666550,0.957559,95261.0,95260.0,0.4962886]
[1763343667411,0.789159,95261.0,95260.0,0.4962886]
[1763343667913,0.69760927,95261.0,95260.0,0.4962886]
[1763343669393,0.71409697,95261.0,95260.0,0.4962886]
[1763343670986,0.71409697,95261.0,95250.0,0.1]
[1763343670987,0.323,95260.0,95250.0,0.1]
[1763343671208,0.02771,95231.0,95224.0,0.04944442]
[1763343671405,0.323,95230.0,95224.0,0.04944442]
[1763343671605,0.01605,95225.0,95224.0,0.04944442]
[1763343671809,0.70905,95225.0,95224.0,0.04944442]
[1763343671996,0.323,95224.0,95221.0,0.04944442]
[1763343672196,0.74654,95224.0,95217.0,0.04944442]
[1763343672461,0.02354,95223.0,95214.0,0.04944442]
[1763343672654,0.323,95222.0,95214.0,0.04944442]
[1763343672869,0.01605,95215.0,95214.0,0.04944442]
[1763343673019,0.774111,95215.0,95211.0,0.04944442]
[1763343673219,0.34654,95214.0,95211.0,0.04944442]
[1763343673445,0.01605,95212.0,95211.0,0.04944442]
[1763343673622,0.72905,95212.0,95211.0,0.04944442]
[1763343673832,0.75259,95212.0,95211.0,0.04944442]
[1763343674108,0.323,95211.0,95189.0,0.00756]
[1763343674326,0.73654,95211.0,95201.0,0.04944442]
[1763343674535,0.323,95209.0,95208.0,0.04944442]
[1763343674742,0.663,95209.0,95208.0,0.04944442]
[1763343675412,0.7472,95209.0,95208.0,0.04944442]
[1763343675616,0.8314,95209.0,95208.0,0.04944442]
[1763343676387,0.915696,95209.0,95208.0,0.04944442]
[1763343676879,0.7472,95209.0,95208.0,0.06562442]
[1763343677069,0.663,95209.0,95208.0,0.09022442]
[1763343677562,0.663,95209.0,95208.0,0.06562442]
[1763343677736,0.7293,95209.0,95208.0,0.04944442]
[1763343678973,0.7293,95209.0,95208.0,0.05044442]
[1763343679173,0.7293,95209.0,95208.0,0.06662442]
[1763343679371,0.7293,95209.0,95208.0,0.06700949]
[1763343679575,0.7457961,95209.0,95208.0,0.06700949]
[1763343679794,0.6794961,95209.0,95208.0,0.06700949]
[1763343679986,0.663,95209.0,95208.0,0.09160949]
[1763343682219,0.663,95209.0,95208.0,0.06700949]
[1763343682424,0.83148,95209.0,95208.0,0.09160949]
[1763343682641,0.42424,95209.0,95208.0,0.09160949]
[1763343682842,0.50848,95209.0,95208.0,0.13502823]
[1763343683045,0.52497397,95209.0,95208.0,0.23502823]
[1763343683302,0.84797397,95209.0,95208.0,0.23502823]
[1763343683521,0.44073397,95209.0,95208.0,0.23502823]
[1763343683734,0.52497397,95209.0,95208.0,0.23502823]
[1763343684047,0.50848,95209.0,95208.0,0.23502823]
[1763343685228,0.50848,95209.0,95208.0,0.23402823]
[1763343685415,0.50848,95209.0,95208.0,0.23602823]
[1763343685555,0.50848,95209.0,95208.0,0.23502823]
[1763343685910,0.50848,95209.0,95208.0,0.23602823]
[1763343686139,0.50848,95209.0,95208.0,0.23402823]
[1763343686260,0.50848,95209.0,95208.0,0.23602823]
[1763343686460,0.50848,95209.0,95208.0,0.23702823]
[1763343686942,0.74724,95209.0,95208.0,0.23702823]
[1763343687145,0.663,95209.0,95208.0,0.23702823]
[1763343687316,0.67949327,95209.0,95208.0,0.23702823]
[1763343687517,0.67949327,95209.0,95208.0,0.23502823]
[1763343687889,0.67949327,95209.0,95208.0,0.23602823]
[1763343695554,0.84797327,95209.0,95208.0,0.23602823]
[1763343696985,0.9327706,95209.0,95208.0,0.16800949]
[1763343697190,0.8485306,95209.0,95208.0,0.05182949]
[1763343697531,0.7642906,95209.0,95208.0,0.05182949]
[1763343697804,0.7642906,95209.0,95208.0,0.06800949]
[1763343698003,0.74779733,95209.0,95208.0,0.06700949]
[1763343698208,0.74779733,95209.0,95208.0,0.06600949]
[1763343698570,0.74779733,95209.0,95208.0,0.04982949]
[1763343700128,0.663,95209.0,95208.0,0.04982949]
[1763343703776,0.663,95209.0,95208.0,0.09060949]
[1763343703989,0.34,95209.0,95208.0,0.09060949]
[1763343704337,0.663,95209.0,95208.0,0.09060949]
[1763343705060,0.663,95209.0,95208.0,0.19060949]
[1763343705576,0.83148,95209.0,95208.0,0.19060949]
[1763343705955,0.83148,95209.0,95208.0,0.19160949]
[1763343706522,0.83148,95209.0,95208.0,0.23502823]
[1763343706728,0.663,95209.0,95208.0,0.23502823]
[1763343711629,0.67949459,95209.0,95208.0,0.23502823]
[1763343711835,0.663,95209.0,95208.0,0.23502823]
[1763343714526,0.7293,95209.0,95208.0,0.23502823]
[1763343714838,0.74579436,95209.0,95208.0,0.23502823]
[1763343715141,0.67949436,95209.0,95208.0,0.23502823]
[1763343715377,0.67949436,95209.0,95208.0,0.23402823]
[1763343715552,0.84797436,95209.0,95208.0,0.23502823]
[1763343716374,0.84797436,95209.0,95208.0,0.23602823]
[1763343716583,0.84797436,95209.0,95208.0,0.23502823]
[1763343716790,0.84797436,95209.0,95208.0,0.23602823]
[1763343717775,0.76373436,95209.0,95208.0,0.23602823]
[1763343719775,0.67949436,95209.0,95208.0,0.23602823]
[1763343721975,0.35649436,95209.0,95208.0,0.23602823]
[1763343722326,0.34629875,95209.0,95208.0,0.23602823]
[1763343722550,0.3433479,95209.0,95208.0,0.23602823]
[1763343722755,0.34247214,95209.0,95208.0,0.23602823]
[1763343722941,0.34247214,95209.0,95208.0,0.32928286]
[1763343723089,0.32597778,95209.0,95208.0,0.32828286]
[1763343723288,0.32597778,95209.0,95208.0,0.33028286]
[1763343723636,0.32597778,95209.0,95208.0,0.23802823]
[1763343724073,0.15983874,95209.0,95208.0,0.23802823]
[1763343724483,4.433e-05,95224.0,95223.0,0.09286316]
[1763343724671,0.72304433,95224.0,95223.0,0.10906316]
[1763343724874,0.72304433,95224.0,95223.0,0.13281316]
[1763343725421,0.89152433,95224.0,95223.0,0.23281316]
[1763343725625,0.90801618,95224.0,95223.0,0.23381316]
[1763343726073,0.90801618,95224.0,95223.0,0.23481316]
[1763343727461,0.82377618,95224.0,95223.0,0.23481316]
[1763343727667,0.73953618,95224.0,95223.0,0.23481316]
[1763343728060,0.73953618,95224.0,95223.0,0.23381316]
[1763343728256,0.73953618,95224.0,95223.0,0.23481316]
[1763343728675,0.73953618,95224.0,95223.0,0.23381316]
[1763343729051,0.73953618,95224.0,95223.0,0.23481316]
[1763343729264,0.73953618,95224.0,95223.0,0.15144442]
[1763343729465,0.73953618,95224.0,95223.0,0.102]
[1763343729667,0.8313108,95224.0,95223.0,0.15144442]
[1763343729872,0.8147108,95224.0,95223.0,0.15144442]
[1763343730373,0.75613618,95224.0,95223.0,0.15044442]
[1763343730540,0.75613618,95224.0,95223.0,0.14944442]
[1763343730734,0.77864618,95224.0,95223.0,0.14944442]
[1763343732206,0.77864618,95224.0,95223.0,0.04944442]
[1763343732572,0.323,95223.0,95222.0,0.04944442]
[1763343732911,0.79577938,95223.0,95222.0,0.04944442]
[1763343734487,0.69211,95223.0,95222.0,0.04944442]
[1763343735406,0.77635,95223.0,95222.0,0.04944442]
[1763343735588,0.86059,95223.0,95222.0,0.04944442]
[1763343736367,0.77635,95223.0,95222.0,0.04944442]
[1763343737126,0.69211,95223.0,95222.0,0.04944442]
[1763343737330,0.76254643,95223.0,95213.0,0.00024755]
[1763343737486,0.02407,95222.0,95220.0,0.04944442]
[1763343737691,0.323,95221.0,95220.0,0.04944442]
[1763343738025,0.77547608,95221.0,95220.0,0.04944442]
[1763343738231,0.79954608,95221.0,95220.0,0.04944442]
[1763343739536,0.81604219,95221.0,95220.0,0.04944442]
[1763343740160,0.81604219,95221.0,95213.0,0.00024755]
[1763343740329,0.0155,95214.0,95213.0,0.00024755]
[1763343740533,0.81417422,95214.0,95213.0,0.00024755]
[1763343741943,0.89422106,95214.0,95213.0,0.00024755]
[1763343743987,0.323,95209.0,95170.0,0.0004]
[1763343744313,0.02756,95201.0,95170.0,0.0004]
[1763343744531,0.71056,95201.0,95170.0,0.0004]
[1763343744712,0.808093,95201.0,95170.0,0.0004]
[1763343745016,0.808093,95201.0,95173.0,0.00679]
[1763343745386,1.2683434,95200.0,95193.0,0.04944442]
[1763343745590,0.08424,95194.0,95193.0,0.04944442]
[1763343745810,0.79274,95194.0,95193.0,0.04944442]
[1763343746101,0.83090276,95194.0,95193.0,0.04944442]
[1763343746304,0.81681,95194.0,95193.0,0.04944442]
[1763343746754,0.81681,95194.0,95193.0,0.04988873]
[1763343747805,0.82747928,95194.0,95193.0,0.04988873]
[1763343748255,0.74323928,95194.0,95193.0,0.04988873]
[1763343748459,0.37,95194.0,95193.0,0.03963431]
[1763343748632,0.31,95194.0,95193.0,0.23249747]
[1763343749863,0.32649569,95194.0,95193.0,0.23349747]
[1763343750182,0.32649569,95194.0,95193.0,0.23449747]
[1763343750563,0.32649569,95194.0,95193.0,0.23349747]
[1763343750733,0.32649569,95194.0,95193.0,0.23449747]
[1763343750933,0.32649569,95194.0,95193.0,0.23349747]
[1763343751365,0.32649569,95194.0,95193.0,0.23449747]
[1763343751572,0.32649569,95194.0,95193.0,0.23349747]
[1763343751937,0.32649569,95194.0,95193.0,0.23449747]
[1763343752131,0.32649569,95194.0,95193.0,0.23349747]
[1763343752375,0.32649569,95194.0,95193.0,0.23449747]
[1763343754796,0.32649569,95194.0,95193.0,0.23504766]
[1763343755409,0.41073569,95194.0,95193.0,0.23504766]
[1763343755648,0.81797569,95194.0,95193.0,0.15243892]
[1763343756001,0.64949569,95194.0,95193.0,0.15243892]
[1763343756403,0.64949569,95194.0,95193.0,0.15143892]
[1763343756607,0.633,95194.0,95193.0,0.15143892]
[1763343756814,0.6963,95194.0,95193.0,0.15243892]
[1763343756994,0.633,95194.0,95193.0,0.15243892]
[1763343757399,0.633,95194.0,95193.0,0.15143892]
[1763343757619,0.633,95194.0,95193.0,0.15243892]
[1763343759042,0.633,95194.0,95193.0,0.19162892]
[1763343763127,0.31,95194.0,95193.0,0.23504766]
[1763343765491,0.80148,95194.0,95193.0,0.23504766]
[1763343767743,0.71724,95194.0,95193.0,0.23504766]
[1763343769711,0.633,95194.0,95193.0,0.23504766]
[1763343769861,0.64949613,95194.0,95193.0,0.23504766]
[1763343770436,0.633,95194.0,95193.0,0.23504766]
[1763343772775,0.633,95194.0,95193.0,0.21118766]
[1763343772946,0.633,95194.0,95193.0,0.23550766]
[1763343773161,0.64949682,95194.0,95193.0,0.23550766]
[1763343775481,0.81797682,95194.0,95193.0,0.23550766]
[1763343779049,0.73373682,95194.0,95193.0,0.23550766]
[1763343780341,0.7228705,95194.0,95193.0,0.15243892]
[1763343781710,0.7632205,95194.0,95193.0,0.15243892]
[1763343781995,0.7632205,95194.0,95193.0,0.05243892]
[1763343782719,0.64949682,95194.0,95193.0,0.09077892]
[1763343783060,0.64949682,95194.0,95193.0,0.08977892]
[1763343783879,0.633,95194.0,95193.0,0.08977892]
[1763343784088,0.633,95194.0,95193.0,0.18977892]
[1763343784481,0.633,95194.0,95193.0,0.19077892]
[1763343785092,0.6963,95194.0,95193.0,0.19077892]
[1763343785660,0.86478,95194.0,95193.0,0.19077892]
[1763343785831,0.86478,95194.0,95193.0,0.19177892]
[1763343787331,0.80148,95194.0,95193.0,0.19177892]
[1763343788040,0.71724,95194.0,95193.0,0.16745892]
[1763343789841,0.633,95194.0,95193.0,0.16745892]
[1763343790044,0.633,95194.0,95193.0,0.15243892]
[1763343790248,0.739136,95194.0,95193.0,0.05243892]
[1763343790861,0.739136,95194.0,95193.0,0.05143892]
[1763343791446,0.714276,95194.0,95193.0,0.05143892]
[1763343792232,0.714276,95194.0,95193.0,0.05043892]
[1763343793932,0.739136,95194.0,95193.0,0.05043892]
[1763343795502,0.907616,95194.0,95193.0,0.05043892]
[1763343795830,0.823376,95194.0,95193.0,0.05043892]
[1763343796039,0.739136,95194.0,95193.0,0.05043892]
[1763343797322,0.75563558,95194.0,95193.0,0.05043892]
[1763343797720,0.739136,95194.0,95193.0,0.05043892]
[1763343800877,0.75563642,95194.0,95193.0,0.05043892]
[1763343803399,0.323,95193.0,95190.0,0.0004]
[1763343803600,0.02573,95191.0,95190.0,0.00053325]
[1763343803777,0.74873,95191.0,95190.0,0.00053325]
[1763343803980,0.77292,95191.0,95190.0,0.00053325]
[1763343804399,0.77292,95191.0,95150.0,0.0004]
[1763343804400,0.323,95179.0,95150.0,0.0004]
[1763343804601,0.02716,95171.0,95170.0,0.0005335]
[1763343804936,0.74016,95171.0,95170.0,0.0005335]
[1763343805074,0.76435,95171.0,95170.0,0.0005335]
[1763343805483,0.93291,95171.0,95170.0,0.0005335]
[1763343805820,1.027377,95171.0,95170.0,0.0005335]
[1763343806372,1.028377,95171.0,95170.0,0.0005335]
[1763343806569,1.0224924,95171.0,95170.0,0.0005335]
[1763343806767,0.9382124,95171.0,95170.0,0.0005335]
[1763343808241,0.859817,95171.0,95170.0,0.0005335]
[1763343810785,0.93773135,95171.0,95170.0,0.0005335]
[1763343811093,0.95423823,95171.0,95170.0,0.00116651]
[1763343811310,0.93773135,95171.0,95170.0,0.00116651]
[1763343813962,0.94194774,95171.0,95170.0,0.00116651]
[1763343814364,0.95845488,95171.0,95170.0,0.00116651]
[1763343815557,1.12701488,95171.0,95170.0,0.00116651]
[1763343815877,1.12279849,95171.0,95170.0,0.00116651]
[1763343817890,0.95423849,95171.0,95170.0,0.00116651]
[1763343818092,0.97365919,95171.0,95170.0,0.00116651]
[1763343818500,0.33299999,95170.0,95150.0,0.0004]
[1763343818681,0.33299999,95170.0,95160.0,0.00053313]
[1763343818682,0.0154,95161.0,95160.0,0.00053313]
[1763343818875,0.6784,95161.0,95160.0,0.00053313]
[1763343819102,0.70259,95161.0,95160.0,0.00053313]
[1763343820239,0.70680673,95161.0,95160.0,0.00053313]
[1763343820528,0.72621875,95161.0,95160.0,0.00053313]
[1763343820753,0.79884063,95161.0,95160.0,0.00053313]
[1763343821839,0.79984063,95161.0,95160.0,0.00053313]
[1763343822073,0.80084063,95161.0,95160.0,0.00053313]
[1763343824593,0.81734955,95161.0,95160.0,0.00053313]
[1763343825094,0.80084063,95161.0,95160.0,0.00080854]
[1763343825481,0.96948063,95161.0,95160.0,0.00080854]
[1763343825648,0.80084063,95161.0,95160.0,0.00080854]
[1763343826927,0.79984063,95161.0,95160.0,0.00080854]
[1763343827178,0.79984063,95161.0,95160.0,0.05025296]
[1763343827179,0.7966239,95161.0,95160.0,0.05025296]
[1763343827485,0.7956239,95161.0,95160.0,0.05025296]
[1763343827930,0.81313187,95161.0,95160.0,0.05025296]
[1763343828133,0.81213187,95161.0,95160.0,0.05025296]
[1763343828333,0.81113187,95161.0,95160.0,0.05025296]
[1763343828492,0.81313187,95161.0,95160.0,0.05025296]
[1763343830874,0.73850999,95161.0,95160.0,0.05025296]
[1763343831023,0.37591999,95161.0,95160.0,0.05025296]